Workbook

Sheet паспорт
A1: ПАТ "УКРТРАНСГАЗ" | G1: ПАСПОРТ ФІЗИКО-ХІМІЧНИХ ПОКАЗНИКІВ ПРИРОДНОГО ГАЗУ № 28
A2: Філія "УМГ "КИЇВТРАНСГАЗ" | G2: переданого Боярським ЛВУМГ та прийнятого ПАТ "Київоблгаз", ПАТ "Київгаз"
A3: Боярське ЛВУМГ | G3: Маршрут №28
A4: Вимірювальна хіміко-аналітична лабораторія
A5: Свідоцтво № 70А-43-14 чинно до 23.07.2019 р. | K5: по газопроводу "ТУЛА - ШОСТКА - КИЇВ" | V5: за період з | X5: 2017-03-01 | Z5: по | AA5: 2017-03-31
A7: Число місяця | B7: Компонентний склад, % мол. | N7: Фізико-хімічні показники газу обчислені на основі компонентного складу, 101,325 кПа | X7: Температура точки роси за вологою (Р = 3.92 МПа), ºС | Y7: Температура точки роси за вуглеводнями, ºС | Z7: Вміст сірководню, г/м3 | AA7: Вміст меркаптанової сірки, г/м3 | AB7: Вміст механічних домішок, г/м3
N8: Густина абсолютна, кг/м3,при 20 ºС, | O8: Температура вимірювання/згоряння при 20/25°С
B9: метан, С1 | C9: етан, С2 | D9: пропан, С3 | E9: ізо-бутан, і-С4 | F9: н-бутан, н-С4 | G9: нео-пентан, нео-С5 | H9: ізо-пентан, і-С5 | I9: н-пентан, н-С5 | J9: гексани та вищі, С6+ | K9: кисень, О2 | L9: азот, N2 | M9: діоксид вуглецю, CО2 | O9: Теплота згоряння нижча | R9: Теплота згоряння вища | U9: Число Воббе вище
O10: ккал/м3 | P10: МДж/м3 | Q10: кВт⋅год/м3 | R10: ккал/м3 | S10: МДж/м3 | T10: кВт⋅год/м3 | U10: ккал/м3 | V10: МДж/м3 | W10: кВт⋅год/м3
A11: 1 | O11: =P11*238.8459 -> 8182.860534 | P11: 34.26 | Q11: =P11/3.6 -> 9.516666667 | R11: =S11*238.8459 -> 9064.201905 | S11: 37.95 | T11: =S11/3.6 -> 10.54166667 | AC11: =SUM(B11:M11)+$K$42+$N$42 -> 0
A12: 2 | O12: =P12*238.8459 -> 8182.860534 | P12: 34.26 | Q12: 9.516666667 | R12: =S12*238.8459 -> 9064.201905 | S12: 37.95 | T12: 10.54166667 | AC12: 0
A13: 3 | O13: 8182.860534 | P13: 34.26 | Q13: 9.516666667 | R13: 9064.201905 | S13: 37.95 | T13: 10.54166667 | AC13: 0 | AD13: =IF(AC13=100,"ОК"," ") -> 
A14: 4 | O14: 8182.860534 | P14: 34.26 | Q14: 9.516666667 | R14: 9064.201905 | S14: 37.95 | T14: 10.54166667 | AC14: 0 | AD14: =IF(AC14=100,"ОК"," ") -> 
A15: 5 | O15: 8182.860534 | P15: 34.26 | Q15: 9.516666667 | R15: 9064.201905 | S15: 37.95 | T15: 10.54166667 | AC15: 0
A16: 6 | B16: 89.4241 | C16: 5.0597 | D16: 1.0461 | E16: 0.1086 | F16: 0.1622 | G16: 0.0037 | H16: 0.0424 | I16: 0.0354 | J16: 0.0744 | K16: 0.0092 | L16: 1.57 | M16: 2.4643 | N16: 0.7557 | O16: 8201.968206 | P16: 34.34 | Q16: 9.538888889 | R16: 9085.698036 | S16: 38.04 | T16: 10.56666667 | U16: =V16*238.8459 -> 11469.38012 | V16: 48.02 | W16: =V16/3.6 -> 13.33888889 | X16: -16.1 | Y16: -15.6 | AC16: 100.0001
A17: 7 | O17: 8201.968206 | P17: 34.34 | Q17: 9.538888889 | R17: 9085.698036 | S17: 38.04 | T17: 10.56666667 | AC17: 0
A18: 8 | O18: 8201.968206 | P18: 34.34 | Q18: 9.538888889 | R18: 9085.698036 | S18: 38.04 | T18: 10.56666667 | AC18: 0
A19: 9 | O19: 8201.968206 | P19: 34.34 | Q19: 9.538888889 | R19: 9085.698036 | S19: 38.04 | T19: 10.56666667 | AC19: 0
A20: 10 | O20: 8201.968206 | P20: 34.34 | Q20: 9.538888889 | R20: 9085.698036 | S20: 38.04 | T20: 10.56666667 | AC20: 0
A21: 11 | O21: 8201.968206 | P21: 34.34 | Q21: 9.538888889 | R21: 9085.698036 | S21: 38.04 | T21: 10.56666667 | AC21: 0
A22: 12 | O22: 8201.968206 | P22: 34.34 | Q22: 9.538888889 | R22: 9085.698036 | S22: 38.04 | T22: 10.56666667 | AC22: 0
A23: 13 | B23: 89.3451 | C23: 5.1294 | D23: 1.0427 | E23: 0.1101 | F23: 0.1683 | G23: 0.0037 | H23: 0.044 | I23: 0.0364 | J23: 0.0616 | K23: 0.0187 | L23: 1.641 | M23: 2.399 | N23: 0.7555 | O23: 8201.968206 | P23: 34.34 | Q23: 9.538888889 | R23: 9085.698036 | S23: 38.04 | T23: 10.56666667 | U23: =V23*238.8459 -> 11471.76858 | V23: 48.03 | W23: =V23/3.6 -> 13.34166667 | AC23: 100 | AD23: ОК
A24: 14 | O24: 8201.968206 | P24: 34.34 | Q24: 9.538888889 | R24: 9085.698036 | S24: 38.04 | T24: 10.56666667 | AC24: 0
A25: 15 | O25: 8201.968206 | P25: 34.34 | Q25: 9.538888889 | R25: 9085.698036 | S25: 38.04 | T25: 10.56666667 | AC25: 0
A26: 16 | O26: 8201.968206 | P26: 34.34 | Q26: 9.538888889 | R26: 9085.698036 | S26: 38.04 | T26: 10.56666667 | AC26: 0
A27: 17 | O27: 8201.968206 | P27: 34.34 | Q27: 9.538888889 | R27: 9085.698036 | S27: 38.04 | T27: 10.56666667 | AC27: 0
A28: 18 | O28: 8201.968206 | P28: 34.34 | Q28: 9.538888889 | R28: 9085.698036 | S28: 38.04 | T28: 10.56666667 | AC28: 0
A29: 19 | O29: 8201.968206 | P29: 34.34 | Q29: 9.538888889 | R29: 9085.698036 | S29: 38.04 | T29: 10.56666667 | AC29: 0
A30: 20 | B30: 89.1695 | C30: 5.1264 | D30: 1.0704 | E30: 0.1139 | F30: 0.1759 | G30: 0.0039 | H30: 0.0474 | I30: 0.0397 | J30: 0.0788 | K30: 0.0281 | L30: 1.7073 | M30: 2.4387 | N30: 0.7576 | O30: 8206.745124 | P30: 34.36 | Q30: 9.544444444 | R30: 9088.086495 | S30: 38.05 | T30: 10.56944444 | U30: =V30*238.8459 -> 11459.82628 | V30: 47.98 | W30: =V30/3.6 -> 13.32777778 | X30: -13.2 | Y30: -12.5 | AC30: 100 | AD30: =IF(AC30=100,"ОК"," ") -> ОК
A31: 21 | O31: =P31*238.8459 -> 8206.745124 | P31: 34.36 | Q31: =P31/3.6 -> 9.544444444 | R31: =S31*238.8459 -> 9088.086495 | S31: 38.05 | T31: =S31/3.6 -> 10.56944444 | AC31: 0
A32: 22 | O32: 8206.745124 | P32: 34.36 | Q32: 9.544444444 | R32: 9088.086495 | S32: 38.05 | T32: 10.56944444 | AC32: 0
A33: 23 | O33: 8206.745124 | P33: 34.36 | Q33: =P33/3.6 -> 9.544444444 | R33: 9088.086495 | S33: 38.05 | T33: =S33/3.6 -> 10.56944444 | AC33: 0 | AD33: =IF(AC33=100,"ОК"," ") -> 
A34: 24 | O34: 8206.745124 | P34: 34.36 | Q34: 9.544444444 | R34: 9088.086495 | S34: 38.05 | T34: 10.56944444 | AC34: 0
A35: 25 | O35: 8206.745124 | P35: 34.36 | Q35: 9.544444444 | R35: 9088.086495 | S35: 38.05 | T35: 10.56944444 | AC35: 0
A36: 26 | O36: 8206.745124 | P36: 34.36 | Q36: 9.544444444 | R36: 9088.086495 | S36: 38.05 | T36: =S36/3.6 -> 10.56944444 | AC36: 0
A37: 27 | B37: 89.5671 | C37: 5.0352 | D37: 1.0426 | E37: 0.1136 | F37: 0.1752 | G37: 0.0039 | H37: 0.0474 | I37: 0.0388 | J37: 0.0764 | K37: 0.0094 | L37: 1.7489 | M37: 2.2913 | N37: 0.7598 | O37: 8135.091354 | P37: 34.06 | Q37: 9.461111111 | R37: 9009.267348 | S37: 37.72 | T37: 10.47777778 | U37: =V37*238.8459 -> 11342.79179 | V37: 47.49 | W37: =V37/3.6 -> 13.19166667 | Z37: 0.006 | AA37: 0.02 | AB37: відсут | AC37: 100.1498
A38: 28 | O38: 8135.091354 | P38: 34.06 | Q38: 9.461111111 | R38: 9009.267348 | S38: 37.72 | T38: 10.47777778 | AC38: 0
A39: 29 | O39: 8135.091354 | P39: 34.06 | Q39: 9.461111111 | R39: 9009.267348 | S39: 37.72 | T39: 10.47777778 | AC39: 0
A40: 30 | O40: 8135.091354 | P40: 34.06 | Q40: 9.461111111 | R40: 9009.267348 | S40: 37.72 | T40: 10.47777778 | AC40: 0
A41: 31 | O41: 8135.091354 | P41: 34.06 | Q41: 9.461111111 | R41: 9009.267348 | S41: 37.72 | T41: 10.47777778 | AC41: 0
A42: Рівень одоризації відповідає чинним нормативним документам | O42: =SUMPRODUCT(O11:O41,' розрахунок'!H7:H37)/' розрахунок'!H38 -> 8190.513646 | P42: =SUMPRODUCT(P11:P41,' розрахунок'!H7:H37)/' розрахунок'!H38 -> 34.29204205 | Q42: =SUMPRODUCT(Q11:Q41,' розрахунок'!H7:H37)/' розрахунок'!H38 -> 9.525567236 | R42: =SUMPRODUCT(R11:R41,' розрахунок'!H7:H37)/' розрахунок'!H38 -> 9072.0196 | S42: =SUMPRODUCT(S11:S41,' розрахунок'!H7:H37)/' розрахунок'!H38 -> 37.98273113 | T42: =SUMPRODUCT(T11:T41,' розрахунок'!H7:H37)/' розрахунок'!H38 -> 10.55075865
H43: Середньозважене значення теплоти згоряння:
B46: Головний інженер Боярського ЛВУМГ Табак С.М. 03.04.2017 р.
C47: Підрозділу підприємства, якому підпорядкована лабораторія | O47: прізвище | R47: підпис | V47: дата
B48: Завідувач вимірювальної хіміко-аналітичної лабораторії Клименко І.А. 03.04.2017 р.
C49: Лабораторія, де здійснювалось вимірювання газу | O49: прізвище | R49: підпис | V49: дата
B50: Начальник служби газовимірювань та метрології Прима Ю.І. 03.04.2017 р.
C51: Підрозділу, відповідального за облік газу за маршрутом | O51: прізвище | R51: підпис | V51: дата

Sheet розрахунок (hidden)
A2: Додаток до Паспорту фізико-хімічних показників природного газу по маршруту № 28
A4: Число місяця | B4: Теплота згоряння вища, МДж/м3 | C4: Київська область | H4: Загальний обсяг газу, м3
C5: Обсяг газу переданого за добу, м3
C6: ГРС - 9 (місто) | D6: ГРС - 9 (ГРС-6) | E6: ГРС - 9 (Вишгород) | F6: ГРС -5 (місто) | G6: ГРС - 5 (Гостомель заводи)
A7: 1 | B7: 37.95 | C7: 0 | D7: 993.471 | E7: 155.082 | F7: 2054.503 | G7: 374.04 | H7: =SUM(C7:G7) -> 3577.096
A8: 2 | B8: 37.95 | C8: 0 | D8: 934.642 | E8: 154.813 | F8: 2064.453 | G8: 359.22 | H8: 3513.128
A9: 3 | B9: 37.95 | C9: 0 | D9: 919.176 | E9: 154.101 | F9: 2063.628 | G9: 353.905 | H9: 3490.81
A10: 4 | B10: 37.95 | C10: 0 | D10: 756.345 | E10: 145.854 | F10: 2054.888 | G10: 351.612 | H10: 3308.699
A11: 5 | B11: 37.95 | C11: 0 | D11: 803.928 | E11: 141.804 | F11: 2072.505 | G11: 337.864 | H11: 3356.101
A12: 6 | B12: 38.04 | C12: 0 | D12: 812.98 | E12: 128.277 | F12: 2063.761 | G12: 333.693 | H12: 3338.711
A13: 7 | B13: 38.04 | C13: 0 | D13: 757.412 | E13: 135.643 | F13: 2044.841 | G13: 334.161 | H13: 3272.057
A14: 8 | B14: 38.04 | C14: 0 | D14: 651.474 | E14: 138.641 | F14: 2034.745 | G14: 335.248 | H14: 3160.108
A15: 9 | B15: 38.04 | C15: 0 | D15: 828.05 | E15: 139.038 | F15: 2017.781 | G15: 336.758 | H15: 3321.627
A16: 10 | B16: 38.04 | C16: 0 | D16: 737.393 | E16: 132.935 | F16: 2002.881 | G16: 333.617 | H16: 3206.826
A17: 11 | B17: 38.04 | C17: 0 | D17: 718.387 | E17: 141.259 | F17: 1996.078 | G17: 335.881 | H17: 3191.605
A18: 12 | B18: 38.04 | C18: 0 | D18: 710.892 | E18: 143.392 | F18: 1988.127 | G18: 336.826 | H18: 3179.237
A19: 13 | B19: 38.04 | C19: 0 | D19: 855.858 | E19: 145.143 | F19: 2026.781 | G19: 341.453 | H19: 3369.235
A20: 14 | B20: 38.04 | C20: 0 | D20: 890.466 | E20: 157.214 | F20: 2029.726 | G20: 346.646 | H20: 3424.052
A21: 15 | B21: 38.04 | C21: 0 | D21: 1287.473 | E21: 225.504 | F21: 2639.732 | G21: 410.289 | H21: 4562.998
A22: 16 | B22: 38.04 | C22: 0 | D22: 838.911 | E22: 153.158 | F22: 2024.712 | G22: 341.722 | H22: 3358.503
A23: 17 | B23: 38.04 | C23: 0 | D23: 851.57 | E23: 143.346 | F23: 2018.116 | G23: 339.025 | H23: 3352.057
A24: 18 | B24: 38.04 | C24: 0 | D24: 799.463 | E24: 156.64 | F24: 2013.616 | G24: 342.901 | H24: 3312.62
A25: 19 | B25: 38.04 | C25: 0 | D25: 921.039 | E25: 156.598 | F25: 2012.187 | G25: 343.786 | H25: 3433.61
A26: 20 | B26: 38.05 | C26: 0 | D26: 795.823 | E26: 143.813 | F26: 2015.963 | G26: 340.794 | H26: 3296.393
A27: 21 | B27: 38.05 | C27: 0 | D27: 855.073 | E27: 127.847 | F27: 2032.241 | G27: 336.722 | H27: 3351.883
A28: 22 | B28: 38.05 | C28: 0 | D28: 844.991 | E28: 100.03 | F28: 1726.777 | G28: 283.448 | H28: 2955.246
A29: 23 | B29: 38.05 | C29: 0 | D29: 939.107 | E29: 129.723 | F29: 1583.194 | G29: 255.518 | H29: 2907.542
A30: 24 | B30: 38.05 | C30: 0 | D30: 839.638 | E30: 122.624 | F30: 1564.92 | G30: 245.601 | H30: 2772.783
A31: 25 | B31: 38.05 | C31: 0 | D31: 881.991 | E31: 134.248 | F31: 1475.111 | G31: 241.147 | H31: 2732.497
A32: 26 | B32: 38.05 | C32: 0 | D32: 924.479 | E32: 148.855 | F32: 1542.133 | G32: 256.828 | H32: 2872.295
A33: 27 | B33: 37.72 | C33: 0 | D33: 926.973 | E33: 141.569 | F33: 1532.392 | G33: 252.178 | H33: 2853.112
A34: 28 | B34: 37.72 | C34: 0 | D34: 776.227 | E34: 113.869 | F34: 1494.974 | G34: 241.574 | H34: 2626.644
A35: 29 | B35: 37.72 | C35: 0 | D35: 879.222 | E35: 106.291 | F35: 1443.839 | G35: 238.353 | H35: 2667.705
A36: 30 | B36: 37.72 | C36: 0 | D36: 931.15 | E36: 128.912 | F36: 1464.21 | G36: 245.983 | H36: 2770.255
A37: 31 | B37: 37.72 | C37: 0 | D37: 827.454 | E37: 122.438 | F37: 1436.593 | G37: 245.742 | H37: 2632.227
A38: Загальний обсяг газу, м3 | C38: =SUM(C7:C37) -> 0 | D38: 26491.058 | E38: 4368.661 | F38: 58535.408 | G38: 9772.535 | H38: =SUM(H7:H37) -> 99167.662
A39: Енергія, МДж | C39: =SUMPRODUCT($B$7:$B$37,C7:C37) -> 0 | D39: 1005994.848 | E39: 165929.1017 | F39: 2223519.383 | G39: 371215.3087 | H39: =SUMPRODUCT(B7:B37,H7:H37) -> 3766658.642
A40: Теплота згоряння (середньозважене значення за місяць), МДж/м³ | C40: =C39/C38 ->  | D40: =D39/D38 -> 37.97488377 | E40: =E39/E38 -> 37.98168402 | F40: =F39/F38 -> 37.98588682 | G40: =G39/G38 -> 37.98556963 | H40: =H39/H38 -> 37.98273113
A41: Теплота згоряння (середньозважене значення за місяць), ккал/м³ | C41: =C40*238.8459 ->  | D41: =D40*238.8459 -> 9070.145291 | E41: =E40*238.8459 -> 9071.769504 | F41: =F40*238.8459 -> 9072.773325 | G41: =G40*238.8459 -> 9072.697565 | H41: =H40*238.8459 -> 9072.0196
A42: Теплота згоряння (середньозважене значення за місяць), кВт*год./м³ | C42: =C40/3.6 ->  | D42: =D40/3.6 -> 10.54857882 | E42: 10.55046778 | F42: 10.55163523 | G42: 10.55154712 | H42: =H40/3.6 -> 10.55075865
D45: 37.98310181 | E45: 37.98922957 | F45: 37.99257647 | G45: 37.99241995 | H45: 37.989895
D46: 9072.108137 | E46: 9073.571726 | F46: 9074.37112 | G46: 9074.333737 | H46: 9073.730663
D47: 10.55086161 | E47: 10.55256377 | F47: 10.55349346 | G47: 10.55344999 | H47: 10.55274861
C51: 37.98310181 | D51: 9072.108137 | E51: 10.55086161
C52: 37.98922957 | D52: 9073.571726 | E52: 10.55256377
C53: 37.99257647 | D53: 9074.37112 | E53: 10.55349346
C54: 37.99241995 | D54: 9074.333737 | E54: 10.55344999
C55: 37.989895 | D55: 9073.730663 | E55: 10.55274861

Sheet додаток
A2: Додаток до Паспорту фізико-хімічних показників природного газу №28
A4: Область | B4: ГРС, прямий споживач | C4: Cередньозважене значення вищої теплоти згоряння
C5: МДж/м³ | D5: ккал/м³ | E5: кВт*год./м³
A6: Київська область | B6: ГРС - 9 (місто) | C6: 37.97 | D6: 9070 | E6: 10.55
B7: ГРС - 9 (ГРС-6) | C7: 37.97 | D7: 9070 | E7: 10.55086161
B8: ГРС - 9 (Вишгород) | C8: 37.98 | D8: 9072 | E8: 10.55256377
B9: ГРС - 5 (місто) | C9: 37.99257647 | D9: 9073 | E9: 10.55349346
B10: ГРС - 5 (Гостомель заводи) | C10: 37.99 | D10: 9073 | E10: 10.55344999
A11: Середньозважене значення вищої теплоти згоряння по маршруту № 28 | C11: 37.98 | D11: 9072 | E11: 10.55274861
A28: Головний інженер Боярського ЛВУМГ Табак С.М. 03.04.2017 р.
A29: Підрозділу підприємства, якому підпорядкована лабораторія | D29: прізвище | E29: підпис | F29: дата
A30: Завідувач вимірювальної хіміко-аналітичної лабораторії Клименко І.А. 03.04.2017 р.
A31: Лабораторія, де здійснювалось вимірювання газу | D31: прізвище | E31: підпис | F31: дата
A32: Начальник служби газовимірювань та метрології Прима Ю.І. 03.04.2017 р.
A33: Підрозділу, відповідального за облік газу за маршрутом | D33: прізвище | E33: підпис | F33: дата

Sheet variablesList (hidden)
A1: 3 | B1: x:\gaysin | C1: 10, 11, 24, 25, 127, 128, 132, 180, 207, 215 | D1: x:\
B2: x:\Illinci
B3: x:\Talne
